bitfinex/quotes_SOLUSD_20250903
["timestamp","ask_amount","ask_price","bid_price","bid_amount"]
[1756881882412,1e-08,209.13,209.1,0.69]
[1756881882800,0.69000001,209.13,209.09,9.27859394]
[1756881883001,0.69000001,209.13,209.09,9.96859394]
[1756881883721,0.69000001,209.13,209.11,4.78217206]
[1756881885634,1e-08,209.13,209.11,4.78217206]
[1756881885929,1e-08,209.13,209.1,4.78240076]
[1756881886134,1e-08,209.13,209.1,9.96836522]
[1756881886829,1e-08,209.13,209.11,0.69]
[1756881887049,1e-08,209.13,209.12,4.49596446]
[1756881887527,1e-08,209.13,209.12,5.18596446]
[1756881887926,1e-08,209.13,209.12,4.78194338]
[1756881891636,1e-08,209.13,209.11,0.69]
[1756881893940,4.49596446,209.12,209.08,1.94612177]
[1756881894238,4.49596446,209.09,209.08,0.03]
[1756881894725,5.18596446,209.09,209.08,0.03]
[1756881894924,9.99950416,209.09,209.08,0.03]
[1756881895621,8.14381739,209.09,209.08,0.03]
[1756881899949,42.5835397,209.09,209.08,0.03]
[1756881900149,45.22381739,209.09,209.08,0.03]
[1756881900549,5.5035397,209.09,209.08,0.03]
[1756881900740,41.8935397,209.09,209.08,0.03]
[1756881900929,45.22381739,209.09,209.08,0.03]
[1756881902830,4.8135397,209.09,209.08,0.03]
[1756881903032,39.72027769,209.09,209.08,0.03]
[1756881903643,40.41027769,209.09,209.08,0.03]
[1756881904758,39.72027769,209.09,209.08,0.03]
[1756881905445,2.64027769,209.09,209.08,0.03]
[1756881905642,39.70027769,209.09,209.08,0.72]
[1756881905831,39.70027769,209.09,209.08,0.03]
[1756881906858,40.39027769,209.09,209.08,0.03]
[1756881907561,45.17405113,209.09,209.08,0.03]
[1756881907742,44.48405113,209.09,209.08,0.03]
[1756881908050,39.70027769,209.1,209.08,0.72]
[1756881908558,2.64027769,209.1,209.09,0.69]
[1756881908950,2.64027769,209.1,209.09,5.47262948]
[1756881910070,2.64027769,209.11,209.09,5.47262948]
[1756881910851,2.64027769,209.1,209.09,5.47262948]
[1756881912441,3.31027769,209.1,209.08,0.03]
[1756881912641,2.64027769,209.09,209.08,0.03]
[1756881913552,3.31027769,209.09,209.08,0.03]
[1756881914448,2.64027769,209.09,209.08,0.03]
[1756881914966,39.68027769,209.09,209.08,0.03]
[1756881915159,40.35027769,209.09,209.08,0.03]
[1756881915572,37.04,209.09,209.08,0.03]
[1756881915755,39.68027769,209.09,209.08,0.03]
[1756881916580,40.35027769,209.09,209.08,0.03]
[1756881919885,58.72850118,209.09,209.08,0.03]
[1756881920187,63.79658221,209.09,209.08,0.03]
[1756881921085,13.87991715,209.08,209.05,0.03]
[1756881921289,28.64027769,209.06,209.05,0.03]
[1756881921661,29.31027769,209.06,209.05,0.03]
[1756881921866,44.82327936,209.06,209.05,0.03]
[1756881925571,1.91740766,209.06,209.05,0.03]
[1756881925791,39.62027769,209.06,209.05,0.69]
[1756881926086,39.62027769,209.06,209.05,0.03]
[1756881927172,40.29027769,209.06,209.05,0.03]
[1756881927371,53.8858717,209.06,209.05,0.03]
[1756881927692,55.80327936,209.06,209.05,0.03]
[1756881929179,18.82327936,209.06,209.05,0.03]
[1756881929379,55.13327936,209.06,209.05,0.03]
[1756881929578,41.53768535,209.06,209.05,0.03]
[1756881929981,4.55768535,209.06,209.05,0.03]
[1756881930291,39.62027769,209.06,209.05,0.03]
[1756881930465,2.64027769,209.06,209.05,0.69]
[1756881930669,39.62027769,209.06,209.05,5.4735446]
[1756881931688,39.62027769,209.06,209.05,0.69]
[1756881932488,39.62027769,209.06,209.05,0.03]
[1756881933487,40.29027769,209.06,209.05,0.03]
[1756881934394,42.20759345,209.06,209.05,0.03]
[1756881936292,62.98,209.06,209.05,0.03]
[1756881936492,65.62027769,209.06,209.05,0.03]
[1756881937397,39.62027769,209.06,209.05,0.69]
[1756881939701,36.98,209.06,209.05,0.69]
[1756881939909,13.59559401,209.12,209.05,5.4735088]
[1756881940111,2.64027769,209.07,209.06,0.66]
[1756881940394,39.68027769,209.08,209.06,0.66]
[1756881940568,39.68027769,209.08,209.05,4.8135088]
[1756881940569,2.64027769,209.07,209.05,0.03]
[1756881940773,39.62027769,209.06,209.05,4.8135446]
[1756881941195,39.62027769,209.06,209.05,0.03]
[1756881941371,39.62027769,209.06,209.05,0.69]
[1756881941773,39.62027769,209.06,209.05,0.03]
[1756881941997,40.34027769,209.06,209.05,0.03]
[1756881943800,39.62027769,209.06,209.05,0.03]
[1756881947605,40.34027769,209.06,209.05,0.03]
[1756881948290,53.9358717,209.06,209.05,0.03]
[1756881949599,58.71918749,209.06,209.05,0.03]
[1756881950803,60.63659516,209.06,209.05,0.03]
[1756881951605,26.0,209.04,209.03,0.03]
[1756881951810,13.87991715,209.03,209.0,0.03]
[1756881952008,26.79698246,209.01,209.0,0.03]
[1756881952407,27.51698246,209.01,209.0,0.03]
[1756881952723,29.43484979,209.01,209.0,0.03]
[1756881954433,60.21930986,209.01,209.0,0.03]
[1756881955519,55.27635887,209.01,209.0,0.03]
[1756881955715,55.56068201,209.01,209.0,0.03]
[1756881959609,50.05622194,209.01,209.0,0.03]
[1756881959813,82.90700321,209.01,209.0,0.03]
[1756881960316,27.91786733,209.01,209.0,0.74]
[1756881960519,67.10921873,209.01,209.0,0.74]
[1756881961632,67.10921873,209.01,209.0,0.03]
[1756881961835,76.57559401,209.01,209.0,0.03]
[1756881962021,80.70481274,209.01,209.0,0.03]
[1756881962222,82.62268007,209.01,209.0,0.03]
[1756881962413,69.02708606,209.01,209.0,0.03]
[1756881962612,67.10921873,209.01,209.0,0.74]
[1756881962838,67.10921873,209.01,209.0,0.03]
[1756881963640,67.10921873,209.01,209.0,0.74]
[1756881964146,43.02699411,209.01,209.0,0.74]
[1756881964338,41.10921873,209.01,209.0,0.74]
[1756881965525,4.12921873,209.01,209.0,0.74]
[1756881965736,36.98,209.01,209.0,0.74]
[1756881966535,36.98,209.01,209.0,5.52468899]
[1756881969329,4.12921873,209.03,209.0,5.52468899]
[1756881969530,36.98,209.02,209.01,0.71]
[1756881970941,36.98,209.02,209.01,5.49446007]
[1756881971955,4.12921873,209.04,209.01,5.49446007]
[1756881972120,36.98,209.03,209.02,0.69]
[1756881972847,36.98,209.04,209.02,0.69]
[1756881973021,4.84446007,209.08,209.03,4.78400229]
[1756881973225,36.98,209.07,209.04,0.69]
[1756881973845,36.98,209.07,209.05,0.69]
[1756881974045,41.10921873,209.07,209.05,0.69]
[1756881974841,36.98,209.07,209.06,0.69]
[1756881975028,36.98,209.07,209.06,5.47331579]
[1756881976345,0.06,209.08,209.06,5.47331579]
[1756881976524,0.06,209.08,209.07,0.69]
[1756881978032,0.06,209.08,209.07,5.473087]
[1756881982754,0.06,209.08,209.07,9.60230573]
[1756881985966,1e-08,209.08,209.07,9.60230573]
[1756881990369,1e-08,209.08,209.07,5.473087]
[1756881990576,1e-08,209.08,209.07,9.60230573]
[1756881993772,1e-08,209.11,209.1,26.0]
[1756881994065,1e-08,209.11,209.1,30.12921873]
[1756881994273,1e-08,209.11,209.1,67.08921873]
[1756881994460,1e-08,209.11,209.1,67.77921873]
[1756881994872,1e-08,209.11,209.1,72.56161949]
[1756881997567,1e-08,209.11,209.1,35.60161949]
[1756881997757,1e-08,209.11,209.1,72.54161949]
[1756881999977,1e-08,209.11,209.1,72.82594263]
[1756882003674,1e-08,209.15,209.11,0.28432314]
[1756882003877,1e-08,209.15,209.14,30.12921873]
[1756882004067,1e-08,209.15,209.14,67.06921873]
[1756882004266,1e-08,209.15,209.14,67.72921873]
[1756882004464,1e-08,209.15,209.14,67.06921873]
[1756882004680,1e-08,209.15,209.14,67.72921873]
[1756882005270,1e-08,209.15,209.14,72.51070481]
[1756882005996,1e-08,209.15,209.14,30.78148608]
[1756882006187,0.67000001,209.15,209.14,4.78148608]
[1756882007261,0.67000001,209.15,209.12,4.78194338]
[1756882007474,0.67,209.14,209.12,4.78194338]
[1756882007681,4.12921874,209.15,209.12,4.78194338]
[1756882007882,0.67,209.13,209.12,4.78194338]
[1756882008478,4.79921874,209.15,209.12,4.78194338]
[1756882008679,0.67,209.14,209.12,4.78194338]
[1756882011986,1e-08,209.15,209.13,41.70921873]
[1756882012198,1e-08,209.16,209.14,4.12921873]
[1756882012382,1e-08,209.16,209.15,67.04921873]
[1756882012575,1e-08,209.16,209.15,67.70921873]
[1756882013496,0.73,209.21,209.16,4.12921873]
[1756882013497,0.06,209.21,209.16,4.12921873]
[1756882013681,0.06,209.21,209.2,4.12921873]
[1756882013880,0.06,209.21,209.2,8.90933345]
[1756882014589,0.06,209.21,209.2,9.56933345]
[1756882017590,0.73,209.21,209.2,4.78011472]
[1756882018902,0.73,209.21,209.18,41.70057175]
[1756882019386,0.06,209.21,209.18,41.70057175]
[1756882020713,0.06,209.21,209.18,44.57476102]
[1756882020914,0.06,209.21,209.2,28.87418927]
[1756882021610,0.06,209.21,209.2,26.0]
[1756882022107,2.93418927,209.21,209.2,26.0]
[1756882022697,0.06,209.21,209.2,30.78011472]
[1756882024993,3.60418927,209.21,209.2,4.78011472]
[1756882025189,3.60418927,209.21,209.18,84.48036378]
[1756882025397,2.87418927,209.19,209.18,84.48036378]
[1756882025702,3.54418927,209.19,209.18,84.51036378]
[1756882026796,2.87418927,209.19,209.18,84.51036378]
[1756882027400,2.87418927,209.2,209.18,84.51036378]
[1756882027815,3.54418927,209.19,209.18,84.51036378]
[1756882028020,0.73,209.21,209.18,84.51036378]
[1756882028196,2.87418927,209.19,209.18,84.51036378]
[1756882029922,2.87418927,209.19,209.18,0.03]
[1756882031105,2.87418927,209.2,209.18,0.03]
[1756882031619,0.06,209.21,209.19,0.66]
[1756882031813,0.06,209.21,209.2,0.66]
[1756882032818,0.06,209.21,209.19,4.78034322]
[1756882035226,0.06,209.21,209.2,0.66]
[1756882036020,0.06,209.21,209.19,4.78034322]
[1756882036196,0.06,209.21,209.19,5.44034322]
[1756882037008,0.75,209.21,209.19,4.78034322]
[1756882037208,0.06,209.21,209.19,4.78034322]
[1756882037725,2.93418927,209.21,209.19,5.44034322]
[1756882038129,0.06,209.21,209.2,26.66]
[1756882038721,0.06,209.21,209.2,26.0]
[1756882039515,0.06,209.21,209.2,31.44011472]
[1756882039725,0.06,209.21,209.2,68.36011472]
[1756882040627,0.06,209.23,209.2,150.93430399]
[1756882040928,0.06,209.23,209.21,3.53418927]
[1756882041227,0.06,209.23,209.22,36.92]
[1756882041399,0.06,209.23,209.22,42.35965777]
[1756882043610,0.06,209.23,209.22,45.23384704]
[1756882043822,0.06,209.23,209.22,47.14868463]
[1756882044028,0.06,209.23,209.22,44.27449536]
[1756882044212,0.06,209.23,209.22,42.35965777]
[1756882046630,0.06,209.23,209.22,44.27449537]
[1756882047729,0.06,209.23,209.22,123.97449537]
[1756882048833,0.2,209.24,209.22,87.05449537]
[1756882049137,3.07418927,209.24,209.22,84.47965777]
[1756882049327,3.07418927,209.24,209.23,36.9]
[1756882049649,3.07418927,209.24,209.23,41.67942933]
[1756882050232,3.76418927,209.24,209.23,4.77942933]
[1756882051512,0.89,209.24,209.23,4.77942933]
[1756882051710,3.76418927,209.24,209.23,4.77942933]
[1756882055626,3.76418927,209.24,209.21,4.77988623]
[1756882055826,2.87418927,209.23,209.21,4.77988623]
[1756882056641,0.2,209.24,209.22,0.66]
[1756882056838,0.2,209.24,209.21,7.6540755]
[1756882057032,0.2,209.24,209.23,0.66]
[1756882057547,0.2,209.24,209.21,4.77988623]
[1756882057752,0.69,209.23,209.21,4.77988623]
[1756882057933,2.87418927,209.23,209.21,5.43988623]
[1756882058123,2.87418927,209.23,209.21,4.77988623]
[1756882059026,3.07418927,209.24,209.21,5.43988623]
[1756882059522,0.2,209.24,209.21,4.77988623]
[1756882059850,0.2,209.24,209.22,0.66]
[1756882060330,0.2,209.24,209.23,0.66]
[1756882060834,3.76418927,209.24,209.21,0.03]
[1756882061026,3.07418927,209.24,209.21,0.03]
[1756882061346,0.69,209.23,209.21,0.03]
[1756882062446,0.2,209.24,209.21,0.03]
[1756882062748,0.2,209.24,209.22,0.66]
[1756882063544,0.2,209.24,209.23,4.77942933]
[1756882066945,0.89,209.24,209.21,4.80988623]
[1756882067144,0.69,209.23,209.21,4.80988623]
[1756882067345,0.69,209.22,209.21,4.80988623]
[1756882068051,0.89,209.24,209.21,4.80988623]
[1756882069151,0.69,209.23,209.21,4.80988623]
[1756882069340,3.07418927,209.24,209.21,4.80988623]
[1756882069541,3.76418927,209.24,209.21,4.80988623]
[1756882070262,0.69,209.23,209.21,4.80988623]
[1756882070943,0.69,209.23,209.21,0.03]
[1756882071269,3.56418927,209.22,209.21,0.03]
[1756882073441,21.93944105,209.22,209.21,0.03]
[1756882073759,13.59559401,209.21,209.18,0.03]
[1756882073949,2.87418927,209.19,209.18,0.03]
[1756882074364,3.56418927,209.19,209.18,0.03]
[1756882075357,8.34453249,209.19,209.18,0.03]
[1756882075539,21.9401265,209.19,209.18,0.03]
[1756882076362,17.15978328,209.19,209.18,0.03]
[1756882076666,3.56418927,209.19,209.18,0.03]
[1756882078466,40.46418927,209.19,209.18,0.03]
[1756882079470,42.08641004,209.19,209.18,0.03]
[1756882080348,46.86675326,209.19,209.18,0.03]
[1756882080547,42.08641004,209.19,209.18,0.03]
[1756882080744,26.69,209.19,209.18,0.03]
[1756882081058,68.10641004,209.19,209.18,0.03]
[1756882081569,33.10253181,209.19,209.18,0.03]
[1756882081876,41.41641004,209.19,209.18,0.03]
[1756882082375,42.10641004,209.19,209.18,0.03]
[1756882082870,46.88675326,209.19,209.18,0.03]
[1756882083448,86.76667041,209.19,209.18,0.03]
[1756882083655,39.59559401,209.17,209.16,0.03]
[1756882083848,48.87273723,209.17,209.16,0.03]
[1756882084047,49.56273723,209.17,209.16,0.03]
[1756882084258,51.47931805,209.17,209.16,0.03]
[1756882084775,13.87991715,209.16,209.15,0.03]
[1756882084966,22.87273723,209.16,209.15,0.03]
[1756882085153,23.56273723,209.16,209.15,0.03]
[1756882086356,25.47931805,209.16,209.15,0.03]
[1756882086972,30.26034692,209.16,209.15,0.03]
[1756882087177,67.18034692,209.16,209.15,0.03]
[1756882088672,62.39931805,209.16,209.15,0.03]
[1756882088878,62.11499491,209.16,209.15,0.03]
[1756882089060,67.18034692,209.16,209.15,0.03]
[1756882089378,26.0,209.14,209.13,0.03]
[1756882089579,30.49641004,209.14,209.13,0.03]
[1756882089757,31.18641004,209.14,209.13,0.03]
[1756882089961,45.56076619,209.14,209.13,0.03]
[1756882090561,50.34225227,209.14,209.13,0.03]
[1756882092060,100.85784628,209.14,209.13,0.03]
[1756882094185,96.0763602,209.14,209.13,0.03]
[1756882094786,96.36068334,209.14,209.13,0.03]
[1756882096486,101.14216942,209.14,209.13,0.03]
[1756882096887,81.79076619,209.14,209.13,0.03]
[1756882099092,96.0663602,209.14,209.13,0.03]
[1756882099461,101.13216942,209.14,209.13,0.03]
[1756882099680,13.87991715,209.13,209.1,0.03]
[1756882099991,4.49641004,209.11,209.1,0.73]
[1756882100287,4.49641004,209.11,209.1,0.03]
[1756882101193,9.27955302,209.11,209.1,0.03]
[1756882106282,9.27955302,209.11,209.1,0.73]
[1756882106283,4.78314298,209.11,209.1,0.73]
[1756882106482,4.49641004,209.11,209.1,0.73]
[1756882108503,4.49641004,209.11,209.1,0.03]
[1756882109098,9.27955759,209.11,209.1,0.03]
[1756882112781,22.8751516,209.11,209.1,0.03]
[1756882112995,23.5551516,209.11,209.1,0.03]
[1756882113299,28.33732366,209.11,209.1,0.03]
[1756882113501,54.6216468,209.11,209.1,0.03]
[1756882113679,18.09200405,209.08,209.07,0.03]
[1756882113883,55.01200405,209.08,209.07,0.03]
[1756882114086,55.69200405,209.08,209.07,0.03]
[1756882114390,57.60913602,209.08,209.07,0.03]
[1756882114594,56.92913602,209.08,209.07,0.03]
[1756882117303,57.60913602,209.08,209.07,0.03]
[1756882117684,62.67631739,209.08,209.07,0.03]
[1756882119411,39.87991715,209.06,209.05,0.03]
[1756882119590,39.59559401,209.03,209.02,0.03]
[1756882119792,81.01200405,209.03,209.02,0.03]
[1756882119999,82.92968748,209.03,209.02,0.03]
[1756882120387,88.39368977,209.03,209.02,0.03]
[1756882121320,88.67801291,209.03,209.02,0.03]
[1756882123707,0.28432314,209.02,209.0,0.03]
[1756882123910,55.29632719,209.01,209.0,0.03]
[1756882124122,55.94632719,209.01,209.0,0.03]
[1756882124426,57.86428648,209.01,209.0,0.03]
[1756882127225,62.64874655,209.01,209.0,0.03]
[1756882131411,62.64874655,209.01,208.98,0.03]
[1756882131412,39.59559401,208.99,208.98,0.03]
[1756882131618,81.29632719,208.99,208.98,0.03]
[1756882131819,81.94632719,208.99,208.98,0.03]
[1756882132021,83.86456241,208.99,208.98,0.03]
[1756882132812,88.64948034,208.99,208.98,0.03]
[1756882133830,83.86456241,208.99,208.98,0.03]
[1756882134005,83.21456241,208.99,208.98,0.03]
[1756882134538,87.99948034,208.99,208.98,0.03]
[1756882134909,83.21456241,208.99,208.98,0.71]
[1756882135828,83.21456241,208.99,208.98,0.03]
[1756882136030,87.99948034,208.99,208.98,0.03]
[1756882136617,88.64948034,208.99,208.98,0.03]
[1756882137533,87.99948034,208.99,208.98,0.03]
[1756882139141,88.64948034,208.99,208.98,0.03]
[1756882139314,88.64948034,208.99,208.95,0.03]
[1756882139315,44.37632719,208.96,208.95,0.03]
[1756882139519,26.0,208.93,208.92,0.03]
[1756882139850,65.84926269,208.93,208.92,0.03]
[1756882140027,66.49926269,208.93,208.92,0.03]
[1756882140354,66.49926269,208.93,208.86,0.1]
[1756882140355,0.28432314,208.92,208.86,0.1]
[1756882140524,0.28432314,208.92,208.88,0.68]
[1756882140525,13.59559401,208.9,208.88,0.68]
[1756882140850,36.92,208.89,208.86,0.1]
[1756882141037,41.70834647,208.89,208.86,0.1]
[1756882141449,41.70834647,208.89,208.87,0.68]
[1756882141649,2.64493955,208.88,208.87,0.68]
[1756882141851,2.64493955,208.88,208.86,0.1]
[1756882142029,39.56493955,208.87,208.86,0.1]
[1756882142751,39.56493955,208.87,208.86,0.78]
[1756882143624,44.35351707,208.87,208.86,0.78]
[1756882145326,44.35351707,208.87,208.86,0.1]
[1756882145731,44.35351707,208.87,208.86,0.78]
[1756882147029,44.35351707,208.87,208.86,0.1]
[1756882147534,57.94911108,208.87,208.86,0.1]
[1756882148253,55.30417153,208.87,208.86,0.1]
[1756882148555,57.94911108,208.87,208.86,0.1]
[1756882149726,58.23343422,208.87,208.86,0.1]
[1756882153630,55.58849467,208.87,208.86,0.1]
[1756882153825,30.78857752,208.87,208.86,0.81]
[1756882154030,83.96911108,208.87,208.86,0.1]
[1756882154245,47.02911108,208.87,208.86,0.81]
[1756882154431,83.96911108,208.87,208.86,0.81]
[1756882154642,83.96911108,208.87,208.86,0.1]
[1756882155740,44.37351707,208.87,208.86,0.81]
[1756882159045,7.43351707,208.87,208.86,0.81]
[1756882159439,44.35351707,208.87,208.86,0.81]
[1756882159855,41.70857752,208.87,208.86,0.81]
[1756882160054,44.35351707,208.87,208.86,0.81]
[1756882162963,44.35351707,208.87,208.86,5.59789619]
[1756882165965,7.43351707,208.87,208.86,5.59789619]
[1756882166140,2.64493955,208.88,208.86,5.59789619]
[1756882166341,36.92,208.87,208.86,4.88789619]
[1756882166951,36.92,208.87,208.86,5.59789619]
[1756882169064,5.59789619,208.9,208.86,5.59789619]
[1756882169363,36.92,208.89,208.87,0.71]
[1756882170166,36.92,208.89,208.88,4.78743776]
[1756882170362,36.92,208.89,208.88,5.49743776]
[1756882174277,39.56493955,208.89,208.88,0.71]
[1756882174565,40.25493955,208.89,208.86,0.1]
[1756882174753,2.64493955,208.87,208.86,0.1]
[1756882174956,39.56493955,208.87,208.86,0.1]
[1756882175341,39.56493955,208.87,208.86,4.88787489]
[1756882175646,36.92,208.87,208.86,5.59787489]
[1756882177274,36.92,208.87,208.86,4.88787489]
[1756882177457,39.56493955,208.87,208.86,4.88787489]
[1756882177658,39.56493955,208.87,208.86,0.1]
[1756882177861,40.25493955,208.87,208.86,0.1]
[1756882178661,45.04327117,208.87,208.86,0.1]
[1756882180486,63.42653214,208.87,208.86,0.1]
[1756882180786,63.71085528,208.87,208.86,0.1]
[1756882182064,58.92318832,208.87,208.86,0.1]
[1756882192574,63.71085528,208.87,208.86,0.1]
[1756882197482,61.06591573,208.87,208.86,0.1]
[1756882197688,63.71085528,208.87,208.86,0.1]
[1756882199519,18.38392563,208.87,208.86,0.1]
[1756882199719,44.33327117,208.87,208.86,0.82]
[1756882200082,7.43327117,208.87,208.86,0.82]
[1756882200283,44.33327117,208.87,208.86,0.82]
[1756882200716,7.43327117,208.87,208.86,0.1]
[1756882200904,44.33327117,208.87,208.86,0.1]
[1756882201083,44.33327117,208.87,208.86,0.82]
[1756882201517,4.78833162,208.87,208.86,0.82]
[1756882201805,45.82144544,208.87,208.86,0.82]
[1756882203207,4.78833162,208.87,208.86,5.60789619]
[1756882203386,36.9,208.87,208.86,5.60789619]
[1756882203779,0.06,208.92,208.86,9.74101001]
[1756882203995,36.9,208.91,208.87,0.72]
[1756882204202,41.03311382,208.91,208.87,0.72]
[1756882204885,4.13311382,208.9,208.87,0.72]
[1756882205092,36.9,208.89,208.87,0.72]
[1756882205501,36.9,208.89,208.88,4.78743776]
[1756882205696,36.9,208.89,208.88,0.72]
[1756882205888,41.03311382,208.89,208.88,0.72]
[1756882206895,36.9,208.89,208.88,0.72]
[1756882207506,36.9,208.89,208.88,5.50743776]
[1756882207701,36.9,208.89,208.88,0.72]
[1756882207895,36.9,208.89,208.86,4.88777028]
[1756882207896,41.03311382,208.89,208.86,5.60777028]
[1756882208091,41.03311382,208.89,208.86,0.1]
[1756882208092,4.13311382,208.87,208.86,0.1]
[1756882208314,41.03311382,208.87,208.86,0.1]
[1756882208498,37.6,208.87,208.86,0.1]
[1756882208809,43.65217732,208.87,208.86,0.1]
[1756882209609,57.53209447,208.87,208.86,0.1]
[1756882209809,61.11677448,208.87,208.86,0.1]
[1756882210114,26.28432314,208.84,208.83,0.03]
[1756882210320,70.90211697,208.84,208.83,0.03]
[1756882210520,71.60211697,208.84,208.83,0.03]
[1756882210924,68.01743696,208.84,208.83,0.03]
[1756882211829,76.38908382,208.84,208.83,0.03]
[1756882212622,13.87991715,208.83,208.81,0.1]
[1756882212925,54.52219764,208.84,208.68,11.97952474]
[1756882212926,26.0,208.79,208.72,0.7]
[1756882213215,4.13311382,208.73,208.72,0.7]
[1756882213415,41.03311382,208.73,208.72,5.49109142]
[1756882213624,36.9,208.73,208.72,5.49109142]
[1756882213839,11.97952474,208.77,208.72,9.62420524]
[1756882214051,36.9,208.76,208.73,4.83311382]
[1756882214338,36.9,208.76,208.74,0.7]
[1756882214510,4.13311382,208.75,208.72,4.79109142]
[1756882214711,36.9,208.74,208.72,4.79109142]
[1756882215019,36.9,208.74,208.73,0.7]
[1756882215813,4.13311382,208.89,208.73,9.62399198]
[1756882216039,11.97968814,208.8,208.74,0.7]
[1756882216339,41.03311382,208.79,208.74,0.7]
[1756882216633,36.9,208.78,208.74,0.7]
[1756882217210,36.9,208.78,208.75,4.79041916]
[1756882217421,36.9,208.78,208.76,0.7]
[1756882217625,36.9,208.77,208.76,0.7]
[1756882218334,36.9,208.77,208.76,5.49018969]
[1756882219022,36.9,208.77,208.76,5.52018969]
[1756882221641,13.59559401,208.84,208.76,9.65330351]
[1756882221840,4.13311382,208.82,208.77,0.7]
[1756882222143,4.13311382,208.8,208.78,0.7]
[1756882222345,36.9,208.79,208.78,0.7]
[1756882222513,36.9,208.79,208.76,4.82018969]
[1756882222514,41.03311382,208.79,208.76,4.82018969]
[1756882222714,41.03311382,208.79,208.77,0.7]
[1756882223340,4.83311382,208.78,208.76,0.03]
[1756882223516,41.03311382,208.77,208.76,0.03]
[1756882223941,41.73311382,208.77,208.76,0.03]
[1756882224441,65.63983645,208.77,208.76,0.03]
[1756882226517,65.92415959,208.77,208.76,0.03]
[1756882226717,65.92415959,208.77,208.73,0.03]
[1756882226718,0.28432314,208.76,208.73,0.03]
[1756882226918,44.01303097,208.74,208.73,0.03]
[1756882227146,44.71303097,208.74,208.73,0.03]
[1756882227915,49.50367962,208.74,208.73,0.03]
[1756882229836,13.87991715,208.73,208.71,0.03]
[1756882230039,54.64870783,208.72,208.71,0.03]
[1756882230345,55.34870783,208.72,208.71,0.03]
[1756882230545,57.26952225,208.72,208.71,0.03]
[1756882230744,57.55384539,208.72,208.71,0.03]
[1756882232157,62.34495309,208.72,208.71,0.03]
[1756882232327,25.42495309,208.72,208.71,0.03]
[1756882232528,62.34495309,208.72,208.71,0.03]
[1756882232853,25.42495309,208.72,208.71,0.03]
[1756882233154,25.42495309,208.72,208.65,0.1]
[1756882233155,13.59559401,208.68,208.65,0.1]
[1756882233335,4.13311382,208.66,208.65,0.1]
[1756882234635,4.13311382,208.66,208.65,0.8]
[1756882235150,4.13311382,208.66,208.65,0.1]
[1756882235544,4.13311382,208.66,208.65,0.8]
[1756882235750,4.13311382,208.66,208.65,0.1]
[1756882236543,4.13311382,208.66,208.65,0.8]
[1756882236741,4.13311382,208.66,208.65,0.1]
[1756882237859,4.13311382,208.66,208.65,0.8]
[1756882238036,134.1,208.74,208.65,5.59271507]
[1756882238228,4.13311382,208.66,208.65,4.89271507]
[1756882238429,41.05311382,208.66,208.65,4.89271507]
[1756882239048,36.92,208.66,208.65,5.59271507]
[1756882239455,41.05311382,208.66,208.65,5.59271507]
[1756882239830,4.13311382,208.66,208.65,5.59271507]
[1756882240139,36.92,208.66,208.65,5.59271507]
[1756882241963,4.13311382,208.69,208.65,17.57450275]
[1756882242139,0.98432314,208.76,208.66,0.72]
[1756882242339,4.13311382,208.7,208.66,0.72]
[1756882242551,36.94,208.69,208.66,0.72]
[1756882242863,36.94,208.68,208.66,0.72]
[1756882243154,4.13311382,208.67,208.66,0.72]
[1756882244258,4.13311382,208.67,208.66,5.51248538]